bitfinex-derivatives/quotes_ETHF0:USTF0_20240905
["timestamp","ask_amount","ask_price","bid_price","bid_amount"]
[1725567137426,0.873,2369.4,2369.3,0.42212]
[1725567137632,0.873,2369.4,2369.2,3.28]
[1725567138328,3.62342752,2369.4,2369.2,3.28]
[1725567138923,3.62342752,2369.4,2369.3,0.42212]
[1725567139621,3.62342752,2369.4,2369.2,3.28]
[1725567139622,3.62342752,2369.4,2369.2,3.70212]
[1725567140622,3.62342752,2369.4,2369.3,0.42212]
[1725567140932,0.873,2369.4,2369.3,0.42212]
[1725567146731,1.0022684,2369.4,2369.3,0.42212]
[1725567148125,1.29511,2369.4,2369.2,3.28]
[1725567148321,2.75541387,2369.3,2369.2,0.42213]
[1725567148635,3.62681387,2369.3,2369.2,0.42213]
[1725567148935,4.58290606,2369.3,2369.2,0.42213]
[1725567149525,4.45361387,2369.3,2369.2,0.42213]
[1725567149727,2.88471108,2369.3,2369.2,0.42213]
[1725567151645,2.8847074,2369.3,2369.2,0.42213]
[1725567152233,2.8847074,2369.3,2369.2,10.03365]
[1725567152533,2.75541387,2369.5,2369.4,1.47738]
[1725567152836,2.75541387,2369.6,2369.5,0.42209]
[1725567153034,2.75541387,2369.7,2369.6,0.42207]
[1725567153332,2.88467901,2369.7,2369.6,0.42207]
[1725567153536,2.88467901,2369.7,2369.6,4.64207]
[1725567153739,0.12926514,2369.7,2369.6,4.64207]
[1725567154239,2.88483273,2369.7,2369.6,4.64207]
[1725567154733,2.75556759,2369.7,2369.6,4.64207]
[1725567154934,2.88483923,2369.7,2369.6,4.64207]
[1725567155348,2.75517542,2369.7,2369.6,4.64207]
[1725567155834,2.88442666,2369.7,2369.6,4.64207]
[1725567156225,0.12925124,2369.7,2369.6,0.42207]
[1725567156440,0.55131124,2369.7,2369.5,0.9031]
[1725567156625,0.55131124,2369.7,2369.2,6.4878]
[1725567156626,2.05286354,2369.6,2369.1,3.28]
[1725567156830,0.12925124,2369.5,2369.4,0.4221]
[1725567157844,2.502,2369.6,2369.5,0.42209]
[1725567158437,2.78332066,2369.6,2369.5,0.42209]
[1725567158631,2.63127695,2369.6,2369.5,0.42209]
[1725567158833,2.88458709,2369.6,2369.5,3.70209]
[1725567159034,2.75531014,2369.6,2369.5,3.70209]
[1725567159240,2.75531014,2369.7,2369.6,0.42207]
[1725567159542,0.12927095,2369.7,2369.6,1.28947]
[1725567161242,3.2078,2369.8,2369.7,0.42205]
[1725567161442,3.61824881,2369.8,2369.7,0.42205]
[1725567161643,0.41044881,2369.8,2369.7,0.42205]
[1725567162437,0.41044881,2369.8,2369.3,6.4878]
[1725567162634,2.75488672,2369.6,2369.5,0.42208]
[1725567162853,2.88410345,2369.6,2369.5,0.42208]
[1725567163949,0.12921673,2369.6,2369.5,0.42208]
[1725567164449,3.73269778,2369.8,2369.5,0.42208]
[1725567165037,0.12914177,2369.6,2369.5,0.42208]
[1725567167538,2.88185597,2369.6,2369.5,0.42208]
[1725567167746,0.12914177,2369.6,2369.5,16.03254]
[1725567167947,2.55063526,2370.0,2369.7,0.42205]
[1725567167948,2.7527142,2369.8,2369.7,0.42205]
[1725567168148,2.7527142,2369.9,2369.8,0.42203]
[1725567168451,2.88182727,2369.9,2369.8,0.42203]
[1725567169849,3.30384727,2369.9,2369.6,1.37]
[1725567170038,3.30384727,2369.9,2369.6,0.42207]
[1725567170039,2.7527142,2369.7,2369.6,0.42207]
[1725567170360,2.7527142,2369.7,2369.4,4.0334]
[1725567170361,2.88182727,2369.7,2369.4,4.0334]
[1725567170536,2.7527142,2369.7,2369.4,4.0334]
[1725567170741,2.7527142,2369.7,2369.5,0.42209]
[1725567170942,2.7527142,2369.7,2369.4,4.0334]
[1725567171143,2.7527142,2369.7,2369.4,7.3134]
[1725567171449,3.6347142,2369.8,2369.6,0.42207]
[1725567171849,4.0567542,2369.8,2369.6,0.42207]
[1725567172051,2.7527142,2369.7,2369.6,0.42207]
[1725567172349,2.88187841,2369.7,2369.6,0.42207]
[1725567174456,0.12916421,2369.7,2369.6,0.42207]
[1725567174952,3.6347142,2369.8,2369.6,0.42207]
[1725567175253,2.88192597,2369.7,2369.6,0.42207]
[1725567175450,3.6347142,2369.8,2369.4,7.3134]
[1725567175654,3.6347142,2369.8,2369.6,0.42206]
[1725567175852,3.6347142,2369.8,2369.4,7.3134]
[1725567176052,3.6347142,2369.8,2369.6,0.42206]
[1725567176554,3.6347142,2369.8,2369.4,7.3134]
[1725567176758,4.47604946,2370.0,2369.6,3.28]
[1725567176950,4.47604946,2370.0,2369.9,0.42202]
[1725567177151,4.60525928,2370.0,2369.9,0.42202]
[1725567177351,1.72333526,2370.0,2369.9,0.42202]
[1725567177550,0.89373526,2370.0,2369.9,0.42202]
[1725567178650,0.89373526,2370.0,2369.9,1.24942]
[1725567182761,0.89373526,2370.0,2369.9,0.8274]
[1725567182965,0.89373526,2370.0,2369.9,1.24942]
[1725567185166,0.00633526,2370.0,2369.9,1.24942]
[1725567189365,2.7527142,2370.3,2370.1,1.05496]
[1725567189665,2.7527142,2370.4,2370.3,0.42195]
[1725567189868,2.88188061,2370.4,2370.3,0.42195]
[1725567190369,2.88188235,2370.4,2370.3,0.42195]
[1725567190958,2.7527142,2370.4,2370.3,0.42195]
[1725567191165,8.5758142,2370.5,2370.3,1.29265]
[1725567191760,8.5758142,2370.5,2370.3,0.8707]
[1725567191961,8.5758142,2370.5,2370.3,1.29264]
[1725567192163,8.5758142,2370.5,2370.3,0.8707]
[1725567195172,8.9977242,2370.5,2370.3,0.8707]
[1725567195370,10.3677242,2370.5,2370.2,1.29735]
[1725567196063,10.3677242,2370.5,2370.2,0.42195]
[1725567196461,2.7527142,2370.4,2370.2,0.42195]
[1725567196665,7.61501,2370.5,2370.2,0.42195]
[1725567196666,10.3677242,2370.5,2370.2,0.42195]
[1725567196972,3.1746442,2370.4,2370.1,0.42197]
[1725567197273,3.1746442,2370.4,2370.2,1.79196]
[1725567197771,8.9977342,2370.5,2370.2,1.79196]
[1725567198372,0.42193,2370.4,2370.2,1.79196]
[1725567198577,3.1746442,2370.4,2370.2,1.37]
[1725567198776,0.42193,2370.4,2370.2,1.37]
[1725567198968,3.1746442,2370.4,2370.2,1.37]
[1725567199273,0.42193,2370.4,2370.2,1.79196]
[1725567199469,8.5758142,2370.5,2370.2,1.79196]
[1725567199470,8.9977342,2370.5,2370.2,1.79196]
[1725567200271,0.42193,2370.4,2370.2,1.79196]
[1725567201573,0.42193,2370.4,2370.2,0.42196]
[1725567202077,0.42193,2370.4,2370.1,0.42197]
[1725567202278,0.42193,2370.4,2370.1,0.42196]
[1725567202479,0.42193,2370.4,2370.2,0.42196]
[1725567203477,2.6153,2370.5,2370.4,0.42193]
[1725567203976,2.75904946,2370.6,2370.5,0.42191]
[1725567204171,0.00633526,2370.6,2370.5,0.42191]
[1725567205176,2.75904946,2370.6,2370.5,0.42191]
[1725567205382,0.00633526,2370.6,2370.5,0.42191]
[1725567205769,0.00633526,2370.6,2370.5,7.06509]
[1725567206585,0.00633526,2370.6,2370.5,6.22301488]
[1725567206775,0.00633526,2370.6,2370.5,2.00461488]
[1725567207173,0.00633526,2370.6,2370.4,2.6353]
[1725567207377,2.51173526,2370.6,2370.4,0.8306]
[1725567207581,0.00633526,2370.6,2370.5,1.79191]
[1725567208985,0.00633526,2370.6,2370.5,6.01031]
[1725567213480,0.00633526,2370.6,2370.5,7.06509]
[1725567213878,0.00633526,2370.6,2370.5,7.39890217]
[1725567214489,0.00633526,2370.6,2370.5,13.39890217]
[1725567214898,0.00633526,2370.6,2370.5,14.45368217]
[1725567217187,0.099,2371.1,2371.0,0.42182]
[1725567217488,1.6814,2371.5,2371.3,0.42177]
[1725567217791,0.85,2371.6,2371.5,0.42173]
[1725567217991,4.0314,2371.7,2371.6,0.42171]
[1725567218190,0.00633526,2371.9,2371.8,0.42168]
[1725567218394,0.00633526,2371.9,2371.8,1.79168]
[1725567219989,0.00633526,2371.9,2371.8,0.42168]
[1725567220602,0.00633526,2371.9,2371.8,1.22918]
[1725567223200,0.00633526,2371.9,2371.8,2.07898]
[1725567224196,0.00633526,2371.9,2371.8,0.8075]
[1725567224797,0.00633526,2371.9,2371.6,3.2078]
[1725567225000,3.2078,2371.7,2371.4,0.00633526]
[1725567225204,2.10752,2371.6,2371.4,0.00633526]
[1725567225406,0.42173,2371.5,2371.4,0.00633526]
[1725567225610,1.28133,2371.5,2371.4,0.00633526]
[1725567225808,5.49813,2371.5,2371.4,0.00633526]
[1725567227407,0.8596,2371.5,2371.4,0.00633526]
[1725567227605,1.6858,2371.6,2371.4,0.00633526]
[1725567228009,2.10752,2371.6,2371.4,0.00633526]
[1725567228606,1.6858,2371.6,2371.4,0.42808526]
[1725567228905,2.10752,2371.6,2371.4,0.00633526]
[1725567229503,0.42173,2371.5,2371.4,0.00633526]
[1725567229708,4.63853,2371.5,2371.4,0.00633526]
[1725567230919,4.2168,2371.5,2371.4,0.00633526]
[1725567231124,4.63853,2371.5,2371.4,0.00633526]
[1725567232926,5.69287,2371.5,2371.4,0.00633526]
[1725567233116,5.69287,2371.5,2370.8,7.426]
[1725567233117,0.42183,2371.0,2370.8,4.56785]
[1725567233422,0.7942,2370.9,2370.8,0.42185]
[1725567234925,0.7942,2370.9,2370.8,3.70185]
[1725567236121,0.524,2371.2,2370.8,3.28]
[1725567236321,1.3291,2371.2,2371.0,0.42181]
[1725567236922,1.3291,2371.2,2371.1,0.4218]
[1725567237133,0.524,2371.2,2371.1,0.4218]
[1725567237422,0.8222,2371.4,2371.0,3.28]
[1725567237423,1.6273,2371.4,2371.2,0.42177]
[1725567237622,2.1513,2371.4,2371.2,0.42177]
[1725567238926,2.1513,2371.4,2371.2,0.42179]
[1725567240323,2.1513,2371.4,2371.1,0.8282]
[1725567240530,3.2078,2371.5,2371.4,0.42175]
[1725567240833,1.7291,2371.7,2371.4,0.42174]
[1725567241032,0.9114,2371.7,2371.4,0.42174]
[1725567241226,0.5021,2371.6,2371.5,0.42173]
[1725567241726,0.5021,2371.6,2371.4,0.42174]
[1725567242336,0.5021,2371.6,2371.4,0.42175]
[1725567242523,0.5021,2371.6,2371.5,0.42173]
[1725567242932,0.4897,2371.7,2371.6,0.42171]
[1725567243647,0.4897,2371.7,2371.5,0.95172]
[1725567246036,0.42171,2371.6,2371.5,0.53]
[1725567246232,0.42173,2371.5,2371.3,0.42176]
[1725567246436,0.4999,2371.5,2371.3,0.42176]
[1725567247334,0.4897,2371.7,2371.4,0.42175]
[1725567247335,0.91141,2371.7,2371.4,0.42175]
[1725567248022,0.91141,2371.7,2371.5,0.42173]
[1725567248225,0.4897,2371.7,2371.5,0.42173]
[1725567248420,0.4897,2371.7,2371.6,0.5395]
[1725567249534,0.9114,2371.7,2371.6,0.5395]
[1725567250522,0.4897,2371.7,2371.6,0.5395]
[1725567253631,0.4897,2371.7,2371.6,0.96121]
[1725567255533,0.9114,2371.7,2371.6,0.5395]
[1725567256040,0.9114,2371.7,2371.6,0.42171]
[1725567256535,3.6641142,2371.7,2371.5,0.42172]
[1725567257333,3.6641142,2371.7,2371.2,7.54227]
[1725567257334,1.05434,2371.5,2371.1,0.5075]
[1725567257629,1.05434,2371.5,2371.3,0.42177]
[1725567257630,0.5346,2371.4,2371.3,0.42177]
[1725567258227,0.95635,2371.4,2371.3,0.42177]
[1725567258733,0.5346,2371.4,2371.3,0.42177]
[1725567258928,0.95636,2371.4,2371.2,0.42178]
[1725567259235,3.70439213,2371.4,2371.2,0.42178]
[1725567259437,0.42177,2371.3,2371.1,0.5075]
[1725567259627,0.91077,2371.3,2371.1,0.92929]
[1725567260230,0.42179,2371.2,2371.1,0.92929]
[1725567260642,0.42179,2371.2,2371.0,0.42181]
[1725567260834,0.42179,2371.2,2370.9,0.9933]
[1725567260835,2.74803213,2371.2,2371.1,0.4218]
[1725567261034,3.65881213,2371.3,2371.1,0.4218]
[1725567261629,3.65881213,2371.3,2371.2,0.42179]
[1725567261630,3.23703213,2371.3,2371.2,0.42179]
[1725567261832,3.36604426,2371.3,2371.2,0.42179]
[1725567262436,0.42179,2371.2,2371.0,0.42182]
[1725567262643,2.74803213,2371.2,2371.1,0.4218]
[1725567262842,3.65881213,2371.3,2371.1,0.4218]
[1725567263544,3.65881213,2371.3,2370.9,0.9933]
[1725567263545,2.74803213,2371.3,2371.2,0.42179]
[1725567263745,0.5346,2371.4,2371.3,0.42177]
[1725567263746,3.28263213,2371.4,2371.3,0.42177]
[1725567264041,3.28263213,2371.4,2370.9,5.2557]
[1725567264231,3.28263213,2371.4,2371.3,0.42177]
[1725567264431,3.41164354,2371.4,2371.3,0.42177]
[1725567264647,0.66361141,2371.4,2371.3,0.42177]
[1725567264837,0.5346,2371.4,2371.3,0.42177]
[1725567265037,2.74803213,2371.5,2371.4,0.42175]
[1725567265233,2.74803213,2371.6,2371.5,0.42173]
[1725567265440,2.74803213,2371.7,2371.6,0.42171]
[1725567265737,2.74803213,2371.7,2371.5,0.42172]
[1725567265738,2.876998,2371.7,2371.5,0.42172]
[1725567266041,2.876998,2371.7,2371.6,0.42171]
[1725567266042,2.74803213,2371.7,2371.6,0.42171]
[1725567266434,2.87697211,2371.7,2371.6,0.42171]
[1725567266644,2.74803213,2371.7,2371.6,0.42171]
[1725567267142,2.87696013,2371.7,2371.6,0.42171]
[1725567267546,2.74803213,2371.7,2371.6,0.42171]
[1725567267844,3.27303213,2371.8,2371.7,0.4217]
[1725567268746,2.87698347,2371.8,2371.7,0.4217]
[1725567269443,2.75436739,2371.9,2371.8,0.42168]
[1725567269641,2.88333567,2371.9,2371.8,0.42168]
[1725567270044,2.88333567,2371.9,2371.8,0.90238]
[1725567270437,2.75436739,2371.9,2371.8,0.90238]
[1725567270633,0.00633526,2371.9,2371.8,0.90238]
[1725567272843,0.00633526,2371.9,2371.7,0.485]
[1725567273040,0.96703526,2371.9,2371.8,0.42168]
[1725567273349,0.96703526,2371.9,2371.7,0.90668]
[1725567273743,0.96703526,2371.9,2371.8,0.42168]
[1725567274548,0.96703526,2371.9,2371.7,0.485]
[1725567274549,0.96703526,2371.9,2371.7,0.90668]
[1725567275240,0.96703526,2371.9,2371.8,0.42168]
[1725567275748,0.00633526,2371.9,2371.8,0.42168]
[1725567275953,0.00633526,2371.9,2371.8,12.39278161]
[1725567277150,0.00633526,2371.9,2371.8,11.33858161]
[1725567277347,0.00633526,2371.9,2371.8,0.42168]
[1725567278742,0.00633526,2371.9,2371.8,0.93028]
[1725567284060,0.00633526,2371.9,2371.8,2.30028]
[1725567285747,0.00633526,2371.9,2371.8,1.8786]
[1725567285946,0.00633526,2371.9,2371.8,2.30028]
[1725567286361,0.00633526,2371.9,2371.3,1.05438]
[1725567286362,0.42174,2371.5,2371.2,0.42178]
[1725567286666,3.62955,2371.4,2371.3,0.4925]
[1725567286955,3.62955,2371.4,2371.1,2.31479]
[1725567286956,4.65935,2371.4,2371.2,0.42178]
[1725567287153,4.2376,2371.4,2371.3,0.42177]
[1725567287760,4.2376,2371.4,2371.1,1.893]
[1725567287761,4.2376,2371.4,2371.2,0.42177]
[1725567288358,4.2376,2371.4,2371.3,0.4925]
[1725567289256,4.2376,2371.4,2371.3,0.91427]
[1725567289760,3.7228,2371.4,2371.3,0.91427]
[1725567290061,0.515,2371.4,2371.3,0.91427]
[1725567290269,3.74833213,2371.6,2371.3,0.91427]
[1725567290270,0.521,2371.6,2371.5,0.42173]
[1725567290564,0.521,2371.6,2371.4,0.42174]
[1725567290768,7.48583213,2371.6,2371.3,0.4925]
[1725567290962,3.26903213,2371.6,2371.4,0.42175]
[1725567291159,7.48583213,2371.6,2371.4,0.42175]
[1725567291355,7.48583213,2371.6,2371.3,0.4925]
[1725567291356,0.521,2371.6,2371.5,0.42173]
[1725567292453,2.74803213,2371.7,2371.6,0.42171]
[1725567293864,2.75436739,2371.9,2371.8,0.42168]
[1725567294067,2.88327546,2371.9,2371.8,0.42168]
[1725567294259,2.75436739,2371.9,2371.8,0.42168]
[1725567296263,2.88332211,2371.9,2371.8,0.42168]
[1725567296763,2.75436739,2371.9,2371.8,0.42168]
[1725567297063,2.88333913,2371.9,2371.8,0.42168]
[1725567297263,0.00633526,2371.9,2371.8,0.42168]
[1725567297463,0.00633526,2371.9,2371.8,7.91768]
[1725567297857,0.00633526,2371.9,2371.8,8.93648]
[1725567298764,0.00633526,2371.9,2371.8,4.72048]
[1725567300159,0.00633526,2371.9,2371.8,10.20062845]
[1725567300356,0.00633526,2371.9,2371.8,9.14642845]
[1725567301670,0.00633526,2371.9,2371.8,4.93042845]
[1725567302770,0.00633526,2371.9,2371.8,1.65042845]
[1725567303166,0.00633526,2371.9,2371.7,0.42169]
[1725567303367,3.24496739,2371.9,2371.6,0.42171]
[1725567303557,0.497,2371.8,2371.6,0.42171]
[1725567304068,0.497,2371.8,2371.7,0.4217]
[1725567304266,0.497,2371.8,2371.6,0.4217]
[1725567304861,0.497,2371.8,2371.7,0.4217]
[1725567305067,0.497,2371.8,2371.3,1.87617785]
[1725567305068,9.777,2371.8,2371.0,4.146]
[1725567305269,2.74721446,2371.3,2370.8,3.28]
[1725567305482,5.95501446,2371.5,2371.0,3.28]
[1725567305766,5.95501446,2371.2,2370.8,5.55041663]
[1725567305961,0.42184,2370.9,2370.7,3.2078]
[1725567306167,3.16904446,2371.0,2370.7,3.2078]
[1725567306365,2.74721446,2371.0,2370.7,3.2078]
[1725567306569,2.74721446,2371.1,2371.0,0.42182]
[1725567306774,2.74721446,2371.6,2371.4,0.42174]
[1725567307067,2.74721446,2371.8,2371.5,0.5035]
[1725567307272,2.78744972,2371.9,2371.5,0.5035]
[1725567307568,0.04023526,2371.9,2371.8,3.70168]
[1725567307771,0.04023526,2371.9,2371.8,3.91074114]
[1725567307970,0.04023526,2371.9,2371.8,8.12674114]
[1725567308163,0.04023526,2371.9,2371.8,14.12674114]
[1725567308759,2.74721446,2372.3,2371.8,19.14578598]
[1725567308970,0.099,2372.5,2372.2,6.4878]
[1725567309270,2.74721446,2372.7,2372.4,3.28]
[1725567309471,0.42156,2372.5,2372.2,3.28]
[1725567309765,3.36396923,2372.4,2372.0,3.28]
[1725567309967,3.65669446,2372.4,2372.1,0.00633526]
[1725567310168,3.16882446,2372.2,2372.1,0.00633526]
[1725567310370,3.31065778,2372.2,2371.5,3.28]
[1725567310568,3.31065778,2372.2,2371.4,1.0103]
[1725567310569,2.74569988,2371.8,2371.7,3.28]
[1725567310763,2.74569988,2371.9,2371.7,3.28]
[1725567310960,5.95349988,2371.9,2371.7,3.28]
[1725567311164,2.74569988,2371.8,2371.7,3.28]
[1725567311366,2.74569988,2371.8,2371.4,1.0103]
[1725567311367,7.09058083,2371.8,2371.5,3.28633526]
[1725567311571,0.4879,2372.0,2371.5,0.00633526]
[1725567311572,3.2078,2371.6,2371.5,0.00633526]
[1725567311769,0.4218,2371.2,2370.9,3.28]
[1725567311974,5.95372525,2371.2,2370.9,3.28]
[1725567312161,5.95372525,2371.2,2370.9,3.70183]
[1725567312367,5.95372525,2371.2,2370.7,3.2078]
[1725567312368,2.74592525,2371.4,2371.1,3.28]
[1725567313571,2.74592525,2371.4,2371.1,3.7018]
[1725567313882,0.00633526,2371.5,2371.3,6.4878]
[1725567314180,0.00633526,2371.5,2371.4,0.42175]
[1725567314575,0.00633526,2371.5,2371.4,4.63855]
[1725567316371,0.099,2371.9,2371.8,0.42168]
[1725567316565,2.74592525,2372.4,2371.8,3.49190158]
[1725567316776,0.4874,2372.6,2372.3,3.28]
[1725567317281,0.4874,2372.6,2372.4,0.5111]
[1725567318080,0.4874,2372.6,2372.3,3.28633526]
[1725567318081,7.423,2372.5,2372.3,0.00633526]
[1725567318273,0.1288774,2372.4,2371.8,4.146]
[1725567318468,0.1288774,2372.4,2371.6,0.9852]
[1725567318469,2.74497781,2372.2,2371.9,3.28]
[1725567318674,0.1288774,2372.3,2371.9,3.28]
[1725567318675,2.74497781,2372.3,2371.9,3.28]
[1725567318869,0.42167,2371.9,2371.5,3.28]
[1725567319070,2.74521898,2372.0,2371.7,3.28]
[1725567319272,2.74521898,2372.0,2371.3,0.9852]
[1725567319273,0.42169,2371.8,2371.6,0.00633526]
[1725567319475,0.9282,2371.7,2371.6,0.00633526]
[1725567319674,3.28,2371.6,2370.9,7.426]
[1725567319975,3.28,2371.6,2370.7,6.4878]
[1725567319976,2.74453094,2371.2,2370.7,6.4878]
[1725567320173,0.42183,2371.0,2370.7,6.4878]
[1725567320370,3.25103094,2371.1,2370.9,3.28]
[1725567320570,0.5065,2371.1,2370.9,3.28]
[1725567321085,0.5065,2371.1,2370.9,3.70183]
[1725567321278,0.5065,2371.1,2370.9,3.28]
[1725567321780,0.00633526,2371.2,2371.0,3.28]
[1725567321969,0.00633526,2371.2,2371.1,0.4859]
[1725567322777,0.00633526,2371.2,2371.1,0.9077]
[1725567323078,0.00633526,2371.2,2371.1,5.1253]
[1725567323288,0.00633526,2371.2,2371.1,0.4859]
[1725567326081,0.00633526,2371.2,2371.1,0.9077]
[1725567326674,0.00633526,2371.2,2371.1,0.4859]
[1725567326883,0.00633526,2371.2,2371.1,0.9077]
[1725567327077,0.00633526,2371.2,2371.1,0.4859]
[1725567327483,0.00633526,2371.2,2371.1,0.9077]
[1725567327780,0.00633526,2371.2,2370.8,0.90228526]
[1725567327989,0.00633526,2371.2,2370.8,1.39498526]
[1725567328278,0.00633526,2371.2,2371.1,0.4218]
[1725567328782,0.00633526,2371.2,2371.1,4.6394]
[1725567329282,0.00633526,2371.2,2370.8,0.00633526]
[1725567329283,10.22393526,2371.2,2370.8,0.00633526]
[1725567329479,1.47645,2370.9,2370.8,0.00633526]
[1725567329681,1.47645,2370.9,2370.0,4.146]
[1725567329682,0.42195,2370.3,2370.0,4.146]
[1725567329987,3.33663265,2370.2,2369.5,4.146]
[1725567330184,0.42203,2369.9,2369.3,0.9683]
[1725567330376,3.2078,2369.9,2369.0,4.146]
[1725567330582,8.16442639,2370.1,2368.8,4.1724]
[1725567330583,3.2078,2369.3,2368.8,4.1724]
[1725567330774,0.10533526,2369.7,2369.2,4.37633526]
[1725567330976,0.00633526,2369.7,2369.4,3.2078]
[1725567331176,0.00633526,2369.7,2369.2,0.00633526]
[1725567331707,0.00633526,2369.7,2369.3,0.42211]
[1725567331986,0.00633526,2369.7,2369.3,9.96740816]
[1725567332188,0.00633526,2369.7,2369.6,0.42207]
[1725567332377,0.6017,2370.2,2369.9,0.422]
[1725567332378,0.099,2370.2,2369.9,0.422]
[1725567332696,5.59616077,2370.5,2370.0,0.21052631]
[1725567332997,0.5854,2370.7,2370.1,4.8449]
[1725567332998,0.4864,2370.7,2370.1,4.8449]
[1725567333288,0.4864,2370.7,2370.1,0.4749]
[1725567333497,0.00633526,2370.6,2370.1,0.4749]
[1725567334382,0.00633526,2370.6,2370.2,0.42195]
[1725567334684,0.00633526,2370.6,2370.1,4.10467]
[1725567334987,0.00633526,2370.6,2370.3,0.42193]
[1725567335379,0.00633526,2370.6,2370.5,0.42191]
[1725567336183,0.00633526,2370.6,2370.2,0.5199]
[1725567336485,0.00633526,2370.6,2370.5,0.42191]
[1725567336693,0.00633526,2370.6,2370.4,7.5778]
[1725567336984,0.00633526,2370.6,2370.2,0.5199]
[1725567337392,0.00633526,2370.6,2370.3,0.42194]
[1725567337584,0.00633526,2370.6,2370.4,0.42193]
[1725567337983,4.2184,2370.5,2369.9,4.37]
[1725567338181,4.2184,2370.5,2369.9,0.42201]
[1725567338182,3.6849,2370.5,2369.9,0.42201]
[1725567338383,3.6849,2370.5,2369.8,0.42203]
[1725567338581,3.6849,2370.5,2369.7,5.3698]
[1725567338582,0.42194,2370.4,2369.7,5.79184]
[1725567338781,3.6849,2370.5,2369.7,5.3698]
[1725567338982,3.6849,2370.5,2369.7,0.5199]
[1725567338983,3.62977,2370.2,2369.7,0.5199]
[1725567339185,3.2078,2370.2,2369.7,0.5199]
[1725567339385,3.2078,2369.9,2369.5,0.42208]
[1725567339581,3.2078,2369.9,2369.4,4.37]
[1725567339780,3.62976,2370.3,2369.4,4.37]
[1725567339991,0.42198,2370.2,2369.6,0.42207]
[1725567340182,3.2078,2370.3,2369.6,0.42207]
[1725567340382,3.2078,2370.3,2369.4,4.37]
[1725567340583,3.62981,2370.0,2369.5,0.42208]
[1725567341090,5.90193,2370.5,2369.7,0.42204]
[1725567341091,0.42197,2370.2,2369.7,0.42204]
[1725567341683,3.2078,2370.3,2369.7,4.37]
[1725567342089,3.62975,2370.3,2369.8,0.42203]
[1725567342283,0.42195,2370.3,2369.8,0.42203]
[1725567342588,0.89902,2370.5,2370.0,3.62979]
[1725567342788,3.21413526,2370.6,2370.4,0.42193]
[1725567343088,0.00633526,2370.6,2370.4,0.42192]
[1725567343487,0.00633526,2370.6,2370.3,3.2078]
[1725567343688,0.00633526,2370.6,2370.2,4.37]
[1725567343689,0.42192,2370.5,2370.2,4.37]
[1725567343889,0.00633526,2370.6,2370.1,0.989]
[1725567344086,3.62972,2370.5,2370.0,0.42199]
[1725567344287,0.42193,2370.4,2369.9,8.93801]
[1725567344498,0.42193,2370.4,2370.0,0.42199]
[1725567344795,0.42195,2370.3,2369.9,4.37]
[1725567344990,0.90674,2370.4,2369.9,4.79202]
[1725567345203,0.90674,2370.4,2369.9,4.79201]
[1725567345204,0.42195,2370.3,2369.9,4.79201]
[1725567345492,0.42196,2370.3,2369.9,0.42201]
[1725567345884,0.4848,2370.4,2369.7,0.989]
[1725567345885,3.2078,2370.0,2369.7,0.989]
[1725567346085,0.4848,2370.4,2369.3,0.42211]
[1725567346086,0.42206,2369.7,2369.3,0.42211]
[1725567346489,0.42206,2369.7,2369.4,0.4221]
[1725567346691,0.42206,2369.7,2369.2,0.52163526]
[1725567347089,0.42206,2369.7,2369.3,0.42211]
[1725567347490,3.2078,2369.8,2369.2,0.52163526]
[1725567347684,3.2078,2369.8,2369.5,0.42208]
[1725567348397,3.62984,2369.8,2369.4,0.4221]
[1725567349295,0.42212,2369.3,2369.2,0.00633526]
[1725567349804,0.5,2369.7,2369.2,0.00633526]
[1725567349992,0.42208,2369.6,2369.2,0.42847526]
[1725567350191,0.92206,2369.7,2369.3,0.42212]
[1725567350400,0.92206,2369.7,2369.5,0.42209]
[1725567350401,0.5,2369.7,2369.5,0.42209]
[1725567350897,0.5,2369.7,2369.4,0.4221]
[1725567351098,3.2078,2369.8,2369.4,4.37]
[1725567351297,3.2078,2369.8,2369.5,0.42208]
[1725567351499,3.2078,2369.8,2369.4,4.37]
[1725567351804,0.42205,2369.7,2369.3,0.91551]
[1725567352190,0.42208,2369.6,2369.3,0.4934]
[1725567352390,0.5199,2369.7,2369.4,0.42209]
[1725567353198,3.2078,2369.8,2369.4,4.37]
[1725567353409,0.099,2370.1,2369.7,0.42205]
[1725567353410,3.72879,2370.1,2369.7,0.42205]
[1725567353700,0.422,2370.0,2369.6,0.42207]
[1725567353902,0.42203,2369.9,2369.5,0.91018]
[1725567354093,3.2078,2370.1,2369.5,0.91018]
[1725567354401,3.2078,2370.1,2369.5,0.4881]
[1725567354402,0.42204,2369.8,2369.5,0.4881]
[1725567354602,0.42203,2369.9,2369.5,0.91018]
[1725567354802,4.2628,2370.1,2369.4,7.99989]
[1725567354998,4.2628,2370.1,2369.4,4.79209]
[1725567354999,0.42206,2369.7,2369.4,4.79209]
[1725567355201,0.42206,2369.7,2369.3,0.4934]
[1725567355395,0.42206,2369.7,2369.4,0.4221]
[1725567355596,3.62985,2369.8,2369.4,0.4221]
[1725567356207,3.2078,2369.8,2369.7,0.42205]
[1725567356404,3.2078,2369.8,2369.7,4.64205]
[1725567356593,3.2078,2369.8,2369.7,15.01205]
[1725567356800,0.099,2370.4,2369.7,14.59]
[1725567357001,0.00633526,2370.6,2370.3,0.42193]
[1725567357002,0.10533526,2370.6,2370.3,0.42193]
[1725567357292,0.00633526,2370.6,2370.4,0.42192]
[1725567357508,0.00633526,2370.6,2370.5,0.42191]
[1725567357809,0.00633526,2370.6,2370.5,0.4869]
[1725567358306,0.00633526,2370.6,2370.5,5.12721]
[1725567358700,0.00633526,2370.6,2370.5,0.90881]
[1725567358896,0.00633526,2370.6,2370.5,14.33501]
[1725567359202,0.00633526,2370.6,2370.5,8.33501]
[1725567360509,3.3068,2371.1,2370.5,13.9131]
[1725567360705,3.3068,2371.1,2370.9,4.37]